lending/lending_fUSD_20240512
["ID","MTS","AMOUNT","RATE_DAILY","PERIOD"]
[326891188,1715547043228,-17003.17041859,0.0001228,2]
[326891189,1715547043242,-219771.35273287,0.0001228,2]
[326891194,1715547046780,-519.58425985,0.0001228,2]
[326891224,1715548005678,2436.85200688,0.00010006,2]
[326891230,1715548070840,522.28932815,0.000101,2]
[326891231,1715548070872,446.04412158,0.000101,2]
[326891232,1715548073923,194.8533955,0.000101,2]
[326891233,1715548081209,370.82893179,0.000101,2]
[326891234,1715548083059,207.23404543,0.000101,2]
[326891235,1715548084949,302.2712118,0.000101,2]
[326891236,1715548089033,162.48665574,0.000101,2]
[326891237,1715548089869,405.63530923,0.000101,2]
[326891238,1715548093568,155.0,0.000101,2]
[326891317,1715548232181,-237.2941111,0.00010554,2]
[326891318,1715548232191,-114.38962901,0.00010555,2]
[326891319,1715548232202,-677.45377569,0.00010555,2]
[326891320,1715548232255,-1271.46687446,0.00010555,2]
[326891321,1715548232266,-618.46,0.00010555,2]
[326891322,1715548232278,-440.71,0.00010555,2]
[326891323,1715548232297,-874.37952395,0.00010555,2]
[326891324,1715548232306,-153.02,0.00010557,2]
[326891325,1715548232316,-3530.36,0.00010562,2]
[326891326,1715548232325,-150.0,0.00010572,2]
[326891327,1715548232335,-150.0,0.00010572,2]
[326891328,1715548232344,-6926.26390467,0.00010573,2]
[326891329,1715548232355,-296.53135641,0.00010573,2]
[326891330,1715548232367,-407.61372447,0.00010573,2]
[326891332,1715548232386,-324.10000261,0.00010573,2]
[326891334,1715548232398,-1044.84516421,0.00010573,2]
[326891337,1715548232409,-1269.05534468,0.00010573,2]
[326891339,1715548232421,-670.78694448,0.00010573,2]
[326891387,1715548233153,-411.49721881,0.00010573,2]
[326891388,1715548233165,-315.0,0.00010573,2]
[326891389,1715548233177,-10988.58633966,0.00010573,2]
[326891390,1715548233188,-311.93,0.00010579,2]
[326891391,1715548233200,-1500.0,0.00010584,2]
[326891392,1715548233211,-701.7,0.00010647,2]
[326891393,1715548233223,-158.16,0.0001069,2]
[326891394,1715548233235,-158.16,0.00010704,2]
[326891395,1715548233245,-158.16,0.00010717,2]
[326891396,1715548233256,-999.99,0.00010717,2]
[326891397,1715548233267,-158.16,0.00010731,2]
[326891398,1715548233278,-158.16,0.00010744,2]
[326891399,1715548233294,-250.0,0.00010888,2]
[326891400,1715548233305,-1507.74,0.00010959,2]
[326891401,1715548233315,-150.0,0.00010959,2]
[326891402,1715548233325,-158.76,0.00010959,2]
[326891403,1715548233336,-793.85,0.00010959,2]
[326891404,1715548233346,-204.52,0.00010972,2]
[326891405,1715548233357,-1000.0,0.00010974,2]
[326891406,1715548233367,-164.26,0.0001098,2]
[326891407,1715548233378,-164.26,0.00010998,2]
[326891408,1715548233388,-4692.74,0.00011008,2]
[326891409,1715548233399,-164.26,0.00011017,2]
[326891410,1715548233410,-164.26,0.00011035,2]
[326891411,1715548233420,-300.0,0.000111,4]
[326891412,1715548233431,-122.14998516,0.00011198,2]
[326891413,1715548233444,-40.33667058,0.00011198,2]
[326891414,1715548233455,-455.96008911,0.00011199,2]
[326891415,1715548233468,-66.32923904,0.00011199,2]
[326891416,1715548233479,-600.0,0.000112,4]
[326891417,1715548233490,-900.0,0.000113,4]
[326891418,1715548233502,-1200.0,0.000114,4]
[326891419,1715548233513,-1500.0,0.000115,4]
[326891420,1715548233524,-300.0,0.000116,4]
[326891421,1715548233535,-300.0,0.000117,4]
[326891422,1715548233546,-1664.71509611,0.00011784,2]
[326891423,1715548233559,-330.79,0.00011784,2]
[326891424,1715548233594,-1507.74136404,0.00011784,2]
[326891425,1715548233604,-300.0,0.000118,4]
[326891426,1715548233614,-6369.88943225,0.00011843,2]
[326891427,1715548238512,-8264.12070231,0.00011843,2]
[326891428,1715548238524,-2741.06039633,0.00011843,2]
[326891437,1715548238670,-30082.21745136,0.00011843,2]
[326891439,1715548238680,-500.0,0.00011853,2]
[326891441,1715548238690,-47177.4388,0.00011853,2]
[326891443,1715548238699,-300.0,0.000119,4]
[326891445,1715548238709,-1563.06983317,0.00011925,2]
[326891447,1715548238719,-171.28,0.00012039,2]
[326891449,1715548238727,-150.0,0.0001207,2]
[326891451,1715548238737,-1500.0,0.00012077,2]
[326891453,1715548238746,-5749.0,0.00012096,2]
[326891455,1715548238755,-37831.0,0.00012096,2]
[326891457,1715548238764,-5911.0,0.00012096,2]
[326891459,1715548238773,-288.0,0.00012096,2]
[326891461,1715548238782,-1463.0,0.00012096,2]
[326891463,1715548238792,-1103.0,0.00012096,2]
[326891465,1715548238802,-150.0,0.0001211,2]
[326891467,1715548238811,-1500.0,0.00012136,2]
[326891469,1715548238820,-150.0,0.00012139,2]
[326891471,1715548238829,-150.0,0.00012145,2]
[326891473,1715548238838,-194.99246834,0.00012157,2]
[326891475,1715548238847,-150.0,0.00012163,2]
[326891478,1715548238857,-1500.0,0.00012172,2]
[326891480,1715548238867,-202.56859487,0.00012175,3]
[326891481,1715548238878,-44685.0377,0.00012176,2]
[326891483,1715548238888,-9481.9395,0.0001218,2]
[326891485,1715548238897,-1886.4044,0.0001218,2]
[326891487,1715548238908,-4012.8059,0.0001218,2]
[326891489,1715548238917,-528.8047,0.0001218,2]
[326891492,1715548238926,-233.26598944,0.0001218,2]
[326891493,1715548238935,-168.84247966,0.0001218,2]
[326891495,1715548238945,-1594.2422,0.0001218,2]
[326891497,1715548238954,-150.0,0.00012181,2]
[326891499,1715548238964,-150.0,0.00012183,2]
[326891500,1715548238974,-233.26598937,0.00012184,2]
[326891501,1715548238983,-233.26598937,0.00012189,2]
[326891502,1715548238992,-233.26598937,0.00012193,2]
[326891503,1715548239002,-233.26598937,0.00012197,2]
[326891504,1715548239011,-200.0,0.00012198,2]
[326891505,1715548239020,-1500.0,0.00012198,2]
[326891506,1715548239029,-1000.0,0.000122,2]
[326891507,1715548239039,-233.26598937,0.00012202,2]
[326891508,1715548239049,-150.0,0.00012204,2]
[326891509,1715548239058,-1000.0,0.00012206,2]
[326891510,1715548239068,-500.0,0.00012206,2]
[326891511,1715548239077,-233.26598937,0.00012206,2]
[326891512,1715548239087,-233.26598937,0.00012211,2]
[326891513,1715548239096,-233.26598937,0.00012215,2]
[326891514,1715548239106,-233.26598937,0.00012219,2]
[326891515,1715548239115,-233.26598937,0.00012224,2]
[326891516,1715548239124,-233.26598937,0.00012228,2]
[326891517,1715548239134,-1000.0,0.00012228,2]
[326891518,1715548239142,-500.0,0.00012228,2]
[326891519,1715548239151,-1500.0,0.00012232,2]
[326891520,1715548239161,-150.0,0.00012242,2]
[326891521,1715548239170,-1000.0,0.0001225,2]
[326891522,1715548239180,-150.0,0.00012254,2]
[326891523,1715548239189,-150.0,0.00012267,2]
[326891524,1715548239199,-157.051306,0.00012275,2]
[326891525,1715548239208,-157.051306,0.00012275,2]
[326891526,1715548239217,-157.051306,0.00012275,2]
[326891527,1715548239227,-157.051306,0.00012275,2]
[326891528,1715548239236,-157.051306,0.00012275,2]
[326891529,1715548239245,-157.051306,0.00012275,2]
[326891530,1715548239256,-157.051306,0.00012276,2]
[326891531,1715548239265,-157.051306,0.00012276,2]
[326891532,1715548239275,-157.051306,0.00012276,2]
[326891533,1715548239284,-157.051306,0.00012276,2]
[326891534,1715548239294,-157.051306,0.00012276,2]
[326891535,1715548239303,-157.051306,0.00012276,2]
[326891536,1715548239313,-5980.375288,0.00012276,2]
[326891537,1715548239325,-2150.8872552,0.00012276,2]
[326891538,1715548239334,-157.051306,0.00012277,2]
[326891539,1715548239343,-157.051306,0.00012277,2]
[326891540,1715548239353,-157.051306,0.00012277,2]
[326891541,1715548239362,-157.051306,0.00012277,2]
[326891542,1715548239372,-157.051306,0.00012277,2]
[326891543,1715548239382,-157.051306,0.00012277,2]
[326891544,1715548239391,-193.98078772,0.00012278,2]
[326891545,1715548239400,-445.70509626,0.00012278,2]
[326891546,1715548239409,-368.13490165,0.00012278,2]
[326891547,1715548239419,-302.04613986,0.00012278,2]
[326891548,1715548239429,-184.26678776,0.00012278,2]
[326891549,1715548239438,-403.90185984,0.00012278,2]
[326891550,1715548239448,-155.0,0.00012278,2]
[326891551,1715548239459,-2219.88737187,0.00012278,2]
[326891552,1715548239468,-522.84487724,0.00012278,2]
[326891553,1715548239478,-206.72782476,0.00012278,2]
[326891554,1715548239488,-2184.28099016,0.00012278,2]
[326891555,1715548239497,-326.40225063,0.00012278,2]
[326891556,1715548239506,-155.0,0.00012278,2]
[326891557,1715548239515,-204.39823741,0.00012278,2]
[326891558,1715548239525,-150.0,0.00012278,2]
[326891559,1715548239534,-488.3397664,0.00012279,2]
[326891560,1715548239544,-155.0,0.00012279,2]
[326891561,1715548239553,-155.99273846,0.00012279,2]
[326891562,1715548239562,-207.84030149,0.00012279,2]
[326891563,1715548239572,-5863.25440605,0.00012279,2]
[326891564,1715548239582,-657.0,0.0001228,2]
[326891565,1715548239592,-293915.10693799,0.0001228,2]
[326891566,1715548239604,-103812.37483737,0.0001228,2]
[326891567,1715548239614,-704133.20738827,0.0001228,2]
[326891568,1715548239626,-4006.7037361,0.0001228,2]
[326891569,1715548239638,-484.0,0.0001228,2]
[326891570,1715548239657,-3140.10265864,0.0001228,2]
[326891571,1715548239668,-739.9595465,0.0001228,2]
[326891581,1715548240522,-977.41381075,0.0001228,2]
[326891651,1715548243756,-857.89935235,0.0001228,2]
[326891694,1715548246216,-1332.64491383,0.00012279,2]
[326891697,1715548246230,-983.86902031,0.00012279,2]
[326891699,1715548246242,-360.44824083,0.00012279,2]
[326891701,1715548246254,-353.62132659,0.00012279,2]
[326891702,1715548246263,-148.51619607,0.00012279,2]
[326891703,1715548246275,-372.52121679,0.00012279,2]
[326891704,1715548246284,-6468.11625609,0.0001228,2]
[326891705,1715548246543,-1232.59825842,0.0001228,2]
[326891763,1715549432296,-162.48665574,0.0001027,2]
[326891764,1715549432306,-537.18384349,0.00010271,2]
[326891765,1715549432316,-268.15834645,0.00010271,2]
[326891766,1715549432327,-254.80078883,0.00010271,2]
[326891767,1715549432337,-207.23404543,0.00010271,2]
[326891768,1715549432346,-204.44716233,0.00010272,2]
[326891769,1715549432356,-364.72356661,0.00010272,2]
[326891770,1715549432367,-155.0,0.00010273,2]
[326891771,1715549432378,-570.82835705,0.00010274,2]
[326891772,1715549432387,-317.63013013,0.00010274,2]
[326891773,1715549432397,-155.0,0.00010274,2]
[326891774,1715549432407,-489.38644599,0.00010274,2]
[326891775,1715549432422,-752.35031756,0.00010274,2]
[326891776,1715549432441,-942.78603767,0.00010274,2]
[326891777,1715549432453,-36.59396233,0.00010274,2]
[326891778,1715549432464,-289.87963864,0.00010274,2]
[326891779,1715549432473,-142.51477659,0.00010275,2]
[326891780,1715549432484,-159.75643521,0.00010275,2]
[326891781,1715549432494,-194.8533955,0.00010275,2]
[326891782,1715549432503,-3458.57005277,0.00010276,2]
[326891783,1715549432535,-297.182565,0.00010276,2]
[326891784,1715549432546,-521.97670531,0.00010276,2]
[326891785,1715549432558,-618.78882594,0.00010276,2]
[326891786,1715549432570,-581339.21727398,0.00010276,2]
[326891787,1715549432579,-3847.9,0.00010288,2]
[326891788,1715549432588,-1023.96718554,0.0001029,2]
[326891789,1715549432597,-18015.2,0.00010299,2]
[326891790,1715549432607,-204.52,0.00010335,2]
[326891791,1715549432616,-250.0,0.00010419,2]
[326891792,1715549432625,-241.14,0.00010419,2]
[326891793,1715549432634,-541.11,0.00010575,2]
[326891794,1715549432643,-172.68,0.00010735,2]
[326891795,1715549432652,-1000.0,0.00010904,2]
[326891796,1715549432661,-2000.0,0.00010959,3]
[326891797,1715549432670,-499.99,0.00010959,2]
[326891798,1715549432680,-602.37,0.00010959,2]
[326891799,1715549432689,-150.99,0.0001106,2]
[326891800,1715549432698,-436.16,0.0001106,2]
[326891801,1715549432707,-282.9552942,0.00011161,2]
[326891802,1715549432716,-2321.94274704,0.00011161,2]
[326891803,1715549432725,-3061.97496667,0.00011163,2]
[326891804,1715549432734,-164.77741988,0.00011163,2]
[326891805,1715549432744,-248.44,0.00011163,2]
[326891806,1715549432753,-155.0,0.00011259,2]
[326891807,1715549432762,-209.43798206,0.00011259,2]
[326891808,1715549432771,-1656.34,0.00011259,2]
[326891809,1715549432780,-800.39615882,0.00011259,2]
[326891810,1715549432790,-633.53029662,0.00011259,2]
[326891811,1715549432799,-19747.8883721,0.00011259,2]
[326891812,1715549432811,-145.57120772,0.00011259,2]
[326891813,1715549432820,-214.22857079,0.00011259,2]
[326891814,1715549432830,-62.96337095,0.0001126,2]
[326891815,1715549432841,-2478.29101073,0.0001126,2]
[326891816,1715549432853,-520.72058488,0.0001126,2]
[326891817,1715549432862,-35.98261881,0.0001126,2]
[326891818,1715549432873,-8986.30614574,0.0001126,2]
[326891819,1715549432884,-438.64240001,0.0001126,2]
[326891820,1715549432903,-2942.69004989,0.0001126,2]
[326891821,1715549432936,-569.99999994,0.0001126,2]
[326891822,1715549432948,-351.899999,0.0001126,2]
[326891823,1715549432959,-2649.46830681,0.0001126,2]
[326891824,1715549432969,-25507.59242555,0.00011261,2]
[326891825,1715549432980,-479.17421262,0.00011261,2]
[326891826,1715549432992,-1233.72140755,0.00011261,2]
[326891828,1715549433003,-2360.35387545,0.00011261,2]
[326891831,1715549433021,-2896.16618637,0.00011261,2]
[326891833,1715549433032,-1119.80783631,0.00011261,2]
[326891835,1715549433043,-22238.22940248,0.00011261,2]
[326891838,1715549433054,-725.86856105,0.00011261,2]
[326891839,1715549433067,-560.2023371,0.00011261,2]
[326891841,1715549433079,-2872.14352236,0.00011261,2]
[326891842,1715549433090,-275.91892234,0.00011261,2]
[326891843,1715549433101,-16633.06655491,0.00011261,2]
[326891844,1715549433172,-612.612,0.00011261,2]
[326891845,1715549433184,-2779.09994212,0.00011261,2]
[326891846,1715549433195,-801.39287515,0.00011261,2]
[326891847,1715549433206,-9179.22619712,0.00011261,2]
[326891848,1715549433217,-604.08169236,0.00011261,2]
[326891850,1715549433228,-5331.93023078,0.00011261,2]
[326891897,1715549438435,-155.0,0.00010269,2]
[326891898,1715549438445,-461.0,0.00011261,2]
[326891899,1715549438506,-2562.08902356,0.00011261,2]
[326891900,1715549438518,-3385.08095881,0.00011261,2]
[326891902,1715549438574,-16760.524477,0.00011261,2]
[326891903,1715549438586,-520821.70330669,0.00011261,2]
[326891904,1715549438596,-18697.0,0.00011261,2]
[326891906,1715549438606,-3061.97496656,0.00011357,2]
[326891908,1715549438615,-169.5,0.00011401,2]
[326891909,1715549438625,-282.95529416,0.00011416,2]
[326891911,1715549438635,-912.13,0.00011441,2]
[326891913,1715549438644,-3061.97496656,0.00011453,2]
[326891915,1715549438653,-3061.97496656,0.0001155,2]
[326891916,1715549438663,-3061.97496656,0.00011647,2]
[326891917,1715549438672,-1296.22665742,0.00011664,2]
[326891918,1715549438684,-282.95529416,0.00011671,2]
[326891919,1715549438693,-164.77741987,0.00011696,2]
[326891920,1715549438703,-3061.97496656,0.00011744,2]
[326891921,1715549438713,-1886.4044,0.00011825,2]
[326891923,1715549438723,-3061.97496656,0.00011841,2]
[326891925,1715549438733,-3503.24646015,0.00011919,2]
[326891926,1715549438743,-282.95529416,0.00011925,2]
[326891927,1715549438754,-3061.97496656,0.00011938,2]
[326891928,1715549438764,-210.84742961,0.00011957,2]
[326891929,1715549438774,-9481.9395,0.00011996,2]
[326891930,1715549438784,-4012.8059,0.00011996,2]
[326891931,1715549438794,-500.0,0.00011996,2]
[326891932,1715549438804,-1000.0,0.00012,2]
[326891933,1715549438815,-155.99273846,0.00012032,2]
[326891934,1715549438825,-3061.97496656,0.00012034,2]
[326891935,1715549438834,-1097.44069902,0.00012034,2]
[326891936,1715549438844,-1069.09068621,0.00012034,2]
[326891937,1715549438854,-45657.9703,0.00012036,2]
[326891938,1715549438864,-57008.7207,0.00012076,2]
[326891939,1715549438874,-1500.0,0.00012076,2]
[326891940,1715549438884,-150.0,0.00012081,2]
[326891941,1715549438894,-1500.0,0.00012091,2]
[326891942,1715549438905,-1000.0,0.000121,2]
[326891943,1715549438915,-150.0,0.00012111,2]
[326891944,1715549438926,-150.0,0.00012113,2]
[326891945,1715549438935,-1500.0,0.00012121,2]
[326891946,1715549438945,-300.0,0.00012129,2]
[326891947,1715549438955,-3061.97496656,0.00012131,2]
[326891948,1715549438964,-150.0,0.00012155,2]
[326891949,1715549438974,-194.99246834,0.00012157,2]
[326891950,1715549438985,-180.06071234,0.0001218,2]
[326891951,1715549439000,-868.0,0.0001218,2]
[326891952,1715549439010,-282.95529416,0.0001218,2]
[326891953,1715549439020,-1000.0,0.00012181,2]
[326891954,1715549439031,-500.0,0.00012181,2]
[326891955,1715549439041,-1000.0,0.00012182,2]
[326891956,1715549439051,-200.0,0.00012182,2]
[326891957,1715549439062,-500.0,0.00012182,2]
[326891958,1715549439073,-500.0,0.00012182,2]
[326891959,1715549439084,-150.0,0.00012203,2]
[326891960,1715549439095,-150.0,0.00012216,2]
[326891961,1715549439105,-150.0,0.00012222,2]
[326891962,1715549439116,-180.06071234,0.00012228,2]
[326891963,1715549439126,-164.77741987,0.00012228,2]
[326891964,1715549439137,-3061.97496656,0.00012228,2]
[326891965,1715549439148,-150.0,0.00012245,2]
[326891966,1715549439158,-150.0,0.00012247,2]
[326891967,1715549439170,-150.0,0.00012253,2]
[326891968,1715549439181,-1500.0,0.00012253,2]
[326891969,1715549439191,-1500.0,0.00012256,2]
[326891970,1715549439202,-1500.0,0.0001226,2]
[326891971,1715549439213,-150.0,0.00012266,2]
[326891972,1715549439223,-1000.0,0.00012267,2]
[326891973,1715549439234,-151.58,0.0001227,2]
[326891974,1715549439244,-151.58,0.0001227,2]
[326891975,1715549439254,-151.58,0.0001227,2]
[326891976,1715549439265,-151.58,0.0001227,2]
[326891977,1715549439275,-151.58,0.0001227,2]
[326891978,1715549439286,-151.58,0.0001227,2]
[326891979,1715549439296,-151.58,0.0001227,2]
[326891980,1715549439307,-5837.8738798,0.00012275,2]
[326891981,1715549439318,-20184.7993549,0.00012275,2]
[326891982,1715549439328,-1676.8220938,0.00012275,2]
[326891983,1715549439338,-1515.6264439,0.00012275,2]
[326891984,1715549439349,-4737.0727,0.00012278,2]
[326891985,1715549439360,-217.06896693,0.00012278,2]
[326891986,1715549439373,-12362.636667,0.00012278,2]
[326891987,1715549439383,-873.81182588,0.00012278,2]
[326891988,1715549439394,-155.0,0.00012278,2]
[326891989,1715549439404,-4411.09951454,0.00012278,2]
[326891990,1715549439416,-3658.63465762,0.00012278,2]
[326891991,1715549439426,-1011.42604063,0.00012278,2]
[326891992,1715549439436,-3082.73013439,0.00012278,2]
[326891993,1715549439448,-300.15616727,0.00012278,2]
[326891994,1715549439458,-248.485701,0.00012278,2]
[326891995,1715549439469,-3083.76487824,0.00012278,2]
[326891996,1715549439479,-351.49192502,0.00012278,2]
[326891997,1715549439489,-161.80076929,0.00012278,2]
[326891998,1715549439499,-248.35796841,0.00012278,2]
[326891999,1715549439509,-1212.7569798,0.00012278,2]
[326892000,1715549439519,-275.56606053,0.00012278,2]
[326892001,1715549439530,-2219.88737187,0.00012278,2]
[326892002,1715549439540,-488.3397664,0.00012278,2]
[326892003,1715549439550,-155.0,0.00012278,2]
[326892004,1715549439560,-155.0,0.00012278,2]
[326892005,1715549439571,-403.90185984,0.00012278,2]
[326892006,1715549439581,-368.13490165,0.00012278,2]
[326892007,1715549439593,-206.72782476,0.00012278,2]
[326892008,1715549439603,-155.0,0.00012279,2]
[326892009,1715549439614,-235.19465005,0.00012279,2]
[326892010,1715549439624,-207.84030149,0.00012279,2]
[326892011,1715549439635,-5863.25440605,0.00012279,2]
[326892012,1715549439645,-407511.73642123,0.0001228,2]
[326892013,1715549439655,-519213.87023315,0.0001228,2]
[326892014,1715549439670,-807945.58222564,0.0001228,2]
[326892044,1715549440506,-171.18644596,0.00011251,2]
[326892046,1715549440516,-171.18644596,0.0001227,2]
[326892048,1715549440525,-171.18644596,0.0001227,2]
[326892050,1715549440535,-22329.33913483,0.0001228,2]
[326892065,1715549440957,-46869.07539138,0.0001228,2]
[326892066,1715549440989,-1103956.59521063,0.0001228,2]
[326892067,1715549440998,-854.79978887,0.0001228,2]
[326892068,1715549441008,-427.8249057,0.0001228,2]
[326892069,1715549441018,-200.0,0.0001228,2]
[326892070,1715549441027,-151.0,0.0001228,2]
[326892071,1715549441037,-151.0,0.0001228,2]
[326892072,1715549441046,-151.0,0.0001228,2]
[326892073,1715549441055,-151.0,0.0001228,2]
[326892074,1715549441065,-151.0,0.0001228,2]
[326892075,1715549441075,-151.0,0.0001228,2]
[326892076,1715549441084,-151.810913,0.0001228,2]
[326892077,1715549441093,-151.0,0.0001228,2]
[326892078,1715549441102,-151.0,0.0001228,2]
[326892079,1715549441111,-151.0,0.0001228,2]
[326892080,1715549441120,-151.0,0.0001228,2]
[326892081,1715549441129,-151.0,0.0001228,2]
[326892082,1715549441138,-151.0,0.0001228,2]
[326892083,1715549441147,-167.469915,0.0001228,2]
[326892084,1715549441156,-167.469915,0.0001228,2]
[326892085,1715549441165,-151.0,0.0001228,2]
[326892086,1715549441174,-283.990288,0.0001228,2]
[326892087,1715549441183,-283.990288,0.0001228,2]
[326892088,1715549441192,-151.0,0.0001228,2]
[326892089,1715549441201,-151.0,0.0001228,2]
[326892090,1715549441210,-152.229865,0.0001228,2]
[326892091,1715549441219,-151.0,0.0001228,2]
[326892092,1715549441229,-151.0,0.0001228,2]
[326892093,1715549441238,-151.620958,0.0001228,2]
[326892094,1715549441247,-151.0,0.0001228,2]
[326892095,1715549441256,-151.0,0.0001228,2]
[326892096,1715549441266,-151.0,0.0001228,2]
[326892097,1715549441275,-151.0,0.0001228,2]
[326892098,1715549441285,-152.167636,0.0001228,2]
[326892099,1715549441294,-151.0,0.0001228,2]
[326892100,1715549441304,-151.0,0.0001228,2]
[326892101,1715549441313,-151.0,0.0001228,2]
[326892102,1715549441323,-151.0,0.0001228,2]
[326892103,1715549441332,-1634.29349,0.0001228,2]
[326892104,1715549441341,-210.892303,0.0001228,2]
[326892105,1715549441350,-151.0,0.0001228,2]
[326892106,1715549441359,-210.892303,0.0001228,2]
[326892107,1715549441370,-151.741963,0.0001228,2]
[326892108,1715549441380,-151.0,0.0001228,2]
[326892109,1715549441390,-151.0,0.0001228,2]
[326892110,1715549441399,-354.351408,0.0001228,2]
[326892111,1715549441408,-427.048782,0.0001228,2]
[326892112,1715549441418,-354.351408,0.0001228,2]
[326892113,1715549441427,-151.0,0.0001228,2]
[326892114,1715549441436,-427.048782,0.0001228,2]
[326892115,1715549441446,-151.0,0.0001228,2]
[326892116,1715549441457,-151.0,0.0001228,2]
[326892117,1715549441468,-151.81978,0.0001228,2]
[326892118,1715549441477,-315.525187,0.0001228,2]
[326892119,1715549441488,-315.525187,0.0001228,2]
[326892120,1715549441497,-151.0,0.0001228,2]
[326892121,1715549441507,-151.0,0.0001228,2]
[326892122,1715549441515,-151.0,0.0001228,2]
[326892123,1715549441525,-186.956528,0.0001228,2]
[326892124,1715549441535,-151.0,0.0001228,2]
[326892125,1715549441544,-186.956528,0.0001228,2]
[326892126,1715549441554,-151.0,0.0001228,2]
[326892127,1715549441563,-615.301916,0.0001228,2]
[326892128,1715549441573,-151.0,0.0001228,2]
[326892129,1715549441583,-615.301916,0.0001228,2]
[326892130,1715549441594,-151.0,0.0001228,2]
[326892131,1715549441603,-560.32002,0.0001228,2]
[326892132,1715549441613,-560.32002,0.0001228,2]
[326892133,1715549441623,-1319.038615,0.0001228,2]
[326892134,1715549441632,-151.0,0.0001228,2]
[326892135,1715549441641,-151.0,0.0001228,2]
[326892136,1715549441651,-1319.038615,0.0001228,2]
[326892137,1715549441660,-151.0,0.0001228,2]
[326892138,1715549441669,-151.0,0.0001228,2]
[326892139,1715549441678,-151.0,0.0001228,2]
[326892140,1715549441688,-272.161395,0.0001228,2]
[326892141,1715549441697,-272.161395,0.0001228,2]
[326892142,1715549441707,-618.056419,0.0001228,2]
[326892143,1715549441716,-618.056419,0.0001228,2]
[326892144,1715549441725,-181.877642,0.0001228,2]
[326892145,1715549441734,-151.0,0.0001228,2]
[326892146,1715549441743,-181.877642,0.0001228,2]
[326892147,1715549441753,-151.0,0.0001228,2]
[326892148,1715549441762,-151.0,0.0001228,2]
[326892149,1715549441771,-151.0,0.0001228,2]
[326892150,1715549441780,-151.0,0.0001228,2]
[326892151,1715549441789,-150.0,0.00012283,2]
[326892152,1715549441798,-1000.0,0.000123,2]
[326892153,1715549441807,-1000.0,0.000123,2]
[326892154,1715549441817,-1506.257,0.000123,2]
[326892155,1715549441826,-209.0,0.000123,2]
[326892156,1715549441835,-883.0,0.000123,2]
[326892157,1715549441845,-809.0,0.00012314,2]
[326892158,1715549441854,-470.761,0.00012314,2]
[326892159,1715549441864,-312.787,0.00012314,2]
[326892160,1715549441873,-422.705,0.00012314,2]
[326892161,1715549441882,-612.0,0.00012314,2]
[326892162,1715549441892,-150.0,0.00012314,2]
[326892163,1715549441901,-150.0,0.00012314,2]
[326892164,1715549441910,-1646.0,0.00012314,2]
[326892165,1715549441919,-2433.0,0.00012314,2]
[326892166,1715549441928,-1138.0,0.00012314,2]
[326892167,1715549441938,-444.0,0.00012314,2]
[326892168,1715549441947,-215.0,0.00012314,2]
[326892169,1715549441956,-3156.0,0.00012314,2]
[326892170,1715549441965,-5749.0,0.00012314,2]
[326892171,1715549441974,-1398.0,0.00012314,2]
[326892172,1715549441983,-973.0,0.00012314,2]
[326892173,1715549441993,-5911.0,0.00012314,2]
[326892174,1715549442003,-2157.0,0.00012314,2]
[326892175,1715549442012,-288.0,0.00012314,2]
[326892176,1715549442021,-37831.0,0.00012314,2]
[326892177,1715549442031,-1463.0,0.00012314,2]
[326892178,1715549442040,-151.58,0.00012315,2]
[326892179,1715549442049,-4725.11809052,0.00012316,2]
[326892180,1715549442058,-150.0,0.00012318,2]
[326892181,1715549442067,-250.0,0.00012318,2]
[326892182,1715549442076,-210.0,0.00012318,2]
[326892183,1715549442085,-252.339,0.00012318,2]
[326892184,1715549442094,-161.0,0.00012318,2]